bitfinex/quotes_BTCUSD_20240803
["timestamp","ask_amount","ask_price","bid_price","bid_amount"]
[1722701271910,2.07775907,60895.0,60894.0,0.015153]
[1722701272121,2.14365907,60895.0,60894.0,0.000153]
[1722701272321,2.14765907,60895.0,60894.0,0.000153]
[1722701272473,2.48109307,60895.0,60894.0,0.000153]
[1722701273070,2.15265907,60895.0,60894.0,0.000153]
[1722701273478,2.63344824,60895.0,60894.0,0.000153]
[1722701273696,2.50186697,60895.0,60894.0,0.000153]
[1722701273899,2.64437971,60895.0,60894.0,0.000153]
[1722701274188,2.64837971,60895.0,60894.0,0.000153]
[1722701274392,2.49102454,60895.0,60894.0,0.000153]
[1722701274701,2.48702454,60895.0,60894.0,0.000153]
[1722701275080,2.48602454,60895.0,60894.0,0.000153]
[1722701275279,2.65922454,60895.0,60894.0,0.000153]
[1722701275484,2.66422454,60895.0,60894.0,0.000153]
[1722701275691,2.82757971,60895.0,60894.0,0.000153]
[1722701275832,2.81257971,60895.0,60894.0,0.000153]
[1722701276236,2.81757971,60895.0,60894.0,0.000153]
[1722701276438,3.28363296,60895.0,60894.0,1e-06]
[1722701276643,3.40134612,60895.0,60894.0,0.000501]
[1722701276837,3.40652776,60895.0,60894.0,0.000501]
[1722701277041,3.41052776,60895.0,60894.0,0.000501]
[1722701277246,3.41054432,60895.0,60894.0,0.000501]
[1722701277449,3.40654432,60895.0,60894.0,0.000501]
[1722701277848,3.40654981,60895.0,60894.0,0.000501]
[1722701278063,3.41054981,60895.0,60894.0,0.000501]
[1722701278268,3.25319464,60895.0,60894.0,0.000501]
[1722701278513,3.27707819,60895.0,60894.0,0.000501]
[1722701278894,3.181544,60895.0,60894.0,0.000501]
[1722701279267,3.12026276,60895.0,60894.0,0.000501]
[1722701279693,3.04862336,60895.0,60894.0,0.000501]
[1722701279864,3.30151272,60895.0,60894.0,0.000501]
[1722701280093,3.43377523,60895.0,60894.0,0.000501]
[1722701280243,3.00980704,60895.0,60894.0,0.000501]
[1722701280448,3.08145296,60895.0,60894.0,0.000501]
[1722701280650,2.75662828,60895.0,60894.0,0.000501]
[1722701280866,0.3,60893.0,60892.0,0.010153]
[1722701281014,2.28740918,60893.0,60892.0,0.010153]
[1722701281218,2.71600838,60893.0,60892.0,0.010153]
[1722701281856,2.78761955,60893.0,60892.0,0.010153]
[1722701282070,1.16408674,60893.0,60892.0,0.010153]
[1722701282268,0.27098756,60893.0,60892.0,0.103886]
[1722701282463,0.92587556,60893.0,60892.0,0.103886]
[1722701282674,0.93987556,60893.0,60892.0,0.104886]
[1722701282844,0.11876556,60893.0,60892.0,0.104886]
[1722701283065,0.001,60893.0,60892.0,0.398091]
[1722701283489,0.32,60896.0,60895.0,0.19488]
[1722701283701,0.05,60900.0,60898.0,0.04288]
[1722701283907,0.05,60900.0,60899.0,0.19488]
[1722701284108,4.0,60902.0,60899.0,0.19488]
[1722701284109,4.0,60902.0,60901.0,0.1942]
[1722701284355,3.7609,60902.0,60901.0,1.46795429]
[1722701284555,1.6885,60902.0,60901.0,1.52984972]
[1722701284771,0.05,60920.0,60915.0,0.03288]
[1722701284974,0.05,60920.0,60916.0,0.01328293]
[1722701285183,0.05,60920.0,60919.0,0.227032]
[1722701285392,0.05,60920.0,60919.0,0.73149524]
[1722701285601,0.05,60920.0,60919.0,0.74465461]
[1722701285814,0.05,60920.0,60919.0,0.25219861]
[1722701286238,0.05,60920.0,60919.0,0.74465461]
[1722701286443,0.05,60920.0,60919.0,1.07295861]
[1722701286645,0.05,60920.0,60919.0,0.23219861]
[1722701286901,0.051,60920.0,60919.0,0.40435061]
[1722701287098,0.051,60920.0,60919.0,0.26019861]
[1722701287328,0.051,60920.0,60919.0,0.42435061]
[1722701287738,0.051,60920.0,60919.0,0.24019861]
[1722701287939,0.051,60920.0,60919.0,0.07273937]
[1722701287940,0.052,60920.0,60919.0,0.07273937]
[1722701288150,0.052,60920.0,60919.0,0.04603937]
[1722701288151,0.871747,60920.0,60919.0,0.04603937]
[1722701288348,0.164171,60912.0,60911.0,0.03288]
[1722701288563,0.07875194,60912.0,60911.0,0.03288]
[1722701289173,0.051,60920.0,60911.0,0.03288]
[1722701289174,0.07875194,60915.0,60911.0,0.03288]
[1722701289507,0.001,60912.0,60911.0,0.03288]
[1722701289717,0.001,60912.0,60911.0,0.54868624]
[1722701289935,0.001,60912.0,60911.0,0.21952786]
[1722701290133,0.001,60912.0,60911.0,0.73204786]
[1722701290134,0.002,60912.0,60911.0,0.73204786]
[1722701290323,0.002,60912.0,60911.0,0.23952786]
[1722701290529,0.002,60912.0,60911.0,1.06039486]
[1722701290939,0.001,60912.0,60911.0,0.73204786]
[1722701291177,0.001,60912.0,60911.0,1.06239486]
[1722701291379,0.05,60920.0,60911.0,1.06239486]
[1722701291380,0.001,60915.0,60914.0,0.885707]
[1722701291585,0.05,60920.0,60914.0,0.885707]
[1722701291586,0.05,60920.0,60919.0,0.555336]
[1722701291787,0.05,60920.0,60919.0,1.36940324]
[1722701291939,0.05,60920.0,60919.0,1.38053733]
[1722701292387,0.05,60920.0,60919.0,1.38253733]
[1722701292719,0.0323,60920.0,60919.0,1.57343733]
[1722701293291,0.0323,60920.0,60919.0,1.57943733]
[1722701293499,0.0333,60920.0,60919.0,1.57943733]
[1722701293707,0.0333,60920.0,60919.0,1.90774133]
[1722701293872,0.001,60920.0,60919.0,1.93074133]
[1722701294075,0.47251164,60949.0,60919.0,1.93074133]
[1722701294076,0.00925,60961.0,60948.0,0.01]
[1722701294276,0.00925,60961.0,60958.0,0.03288]
[1722701294474,0.00925,60961.0,60959.0,0.05616042]
[1722701294678,0.00925,60961.0,60959.0,0.05698724]
[1722701294978,0.00925,60961.0,60959.0,0.56912024]
[1722701295178,0.00925,60961.0,60959.0,0.89392882]
[1722701295375,0.00925,60961.0,60959.0,0.72329906]
[1722701295584,0.00925,60961.0,60959.0,1.05138806]
[1722701295802,0.00925,60978.0,60977.0,0.04288]
[1722701296016,0.00925,60978.0,60977.0,1.21551924]
[1722701296230,0.00925,60978.0,60977.0,0.41854911]
[1722701296426,0.00925,60978.0,60977.0,0.2981001]
[1722701296633,0.00925,60978.0,60977.0,0.2781001]
[1722701297034,0.00925,60978.0,60977.0,0.4620961]
[1722701297315,0.00925,60978.0,60977.0,0.7920881]
[1722701297527,0.00925,60978.0,60977.0,1.2932801]
[1722701297872,0.00925,60978.0,60977.0,1.6212721]
[1722701298076,0.00925,60981.0,60977.0,1.6212721]
[1722701298077,0.00925,60981.0,60980.0,1.05802]
[1722701298278,0.00925,60981.0,60980.0,1.54345524]
[1722701298434,0.00925,60981.0,60980.0,1.57529831]
[1722701298692,0.00925,60981.0,60980.0,0.20918231]
[1722701298897,0.829177,60981.0,60980.0,0.00884307]
[1722701299104,0.829177,60981.0,60974.0,0.03288]
[1722701299105,0.164001,60975.0,60974.0,0.03288]
[1722701299317,0.820007,60975.0,60974.0,0.03288]
[1722701299549,0.32118365,60978.0,60974.0,0.03288]
[1722701299550,0.32118365,60978.0,60974.0,0.09678]
[1722701299752,0.492004,60975.0,60974.0,0.09678]
[1722701299976,0.07875194,60977.0,60966.0,0.03288]
[1722701300171,0.07875194,60977.0,60961.0,0.01]
[1722701300172,0.164017,60969.0,60968.0,0.03288]
[1722701300378,0.57080394,60969.0,60968.0,0.03288]
[1722701300586,0.07875194,60969.0,60952.0,0.0639]
[1722701300804,0.00157439,60968.0,60958.0,0.47251164]
[1722701301007,0.00157439,60968.0,60943.0,0.0639]
[1722701301008,0.328108,60956.0,60950.0,0.03288]
[1722701301214,0.328108,60956.0,60955.0,0.03288]
[1722701301215,0.49216,60956.0,60955.0,0.03288]
[1722701301419,0.820268,60956.0,60955.0,0.03288]
[1722701301632,0.164079,60947.0,60939.0,0.01]
[1722701301852,0.164079,60947.0,60933.0,0.330228]
[1722701301853,0.09935513,60976.0,60952.0,0.002]
[1722701302084,0.09935513,60976.0,60960.0,0.03288]
[1722701302085,0.003,60968.0,60960.0,0.03288]
[1722701302268,0.003,60968.0,60967.0,0.554949]
[1722701302466,0.00925,60981.0,60974.0,0.03288]
[1722701302715,0.00925,60981.0,60970.0,0.328029]
[1722701302716,0.00925,60981.0,60976.0,0.360877]
[1722701302974,0.00925,60981.0,60980.0,0.598744]
[1722701303188,0.00925,60981.0,60980.0,0.76620324]
[1722701303419,0.173235,60981.0,60980.0,0.09678]
[1722701303621,0.173235,60981.0,60980.0,0.35432724]
[1722701303622,0.00925,60981.0,60980.0,0.35432724]
[1722701303825,0.00925,60981.0,60980.0,1.04027924]
[1722701304023,0.00925,60981.0,60980.0,1.37025524]
[1722701304222,0.00925,60981.0,60980.0,0.77710324]
[1722701304422,0.00925,60981.0,60980.0,1.13907924]
[1722701304704,0.00925,60981.0,60980.0,1.12707924]
[1722701304905,0.00925,60981.0,60980.0,1.32327924]
[1722701305128,0.00925,60981.0,60980.0,1.12507924]
[1722701305260,0.00925,60981.0,60980.0,0.21133924]
[1722701305261,0.01025,60981.0,60980.0,0.21133924]
[1722701305476,0.01025,60981.0,60980.0,1.05655816]
[1722701305680,0.00925,60981.0,60980.0,1.04555816]
[1722701305893,0.00925,60981.0,60980.0,1.54673416]
[1722701306091,0.01025,60981.0,60980.0,1.6868129]
[1722701306274,0.01025,60981.0,60980.0,1.7008129]
[1722701306466,0.01025,60981.0,60980.0,1.6868129]
[1722701306866,0.01025,60981.0,60980.0,1.7008129]
[1722701307174,0.01025,60981.0,60980.0,1.6868129]
[1722701307381,0.00925,60981.0,60980.0,1.10417924]
[1722701307629,0.00925,60981.0,60980.0,1.11817924]
[1722701307835,0.00083,61000.0,60999.0,0.01]
[1722701308035,0.00083,61000.0,60999.0,0.37305409]
[1722701308183,0.00083,61000.0,60999.0,0.03838]
[1722701308387,0.00083,61000.0,60999.0,0.72092837]
[1722701308588,0.00083,61000.0,60999.0,1.04880237]
[1722701308794,0.00083,61000.0,60999.0,1.60347637]
[1722701308995,0.00083,61000.0,60999.0,2.05635037]
[1722701309195,0.00083,61000.0,60999.0,2.1043]
[1722701310284,0.00083,61000.0,60999.0,2.14912906]
[1722701310443,0.00083,61000.0,60999.0,1.81925506]
[1722701310641,0.00083,61000.0,60999.0,1.28632424]
[1722701310860,0.00083,61000.0,60999.0,0.04688]
[1722701311245,0.00083,61000.0,60998.0,0.03288]
[1722701311440,0.00083,61000.0,60999.0,0.04688]
[1722701311863,0.00083,61000.0,60999.0,0.19033924]
[1722701312334,0.00083,61000.0,60999.0,0.04688]
[1722701312335,0.8205,61000.0,60999.0,0.04688]
[1722701312749,0.164764,61000.0,60999.0,0.06088]
[1722701312963,0.00083,61000.0,60999.0,0.38227624]
[1722701313163,0.00083,61000.0,60999.0,0.72615024]
[1722701313364,0.00083,61000.0,60999.0,1.37902424]
[1722701313574,0.00083,61000.0,60999.0,0.84195024]
[1722701313778,0.00083,61000.0,60999.0,0.82795024]
[1722701313982,0.00083,61000.0,60999.0,0.51407624]
[1722701314187,0.00083,61000.0,60999.0,1.17882424]
[1722701314391,0.00083,61000.0,60999.0,0.82795024]
[1722701314801,0.00083,61000.0,60999.0,0.52807624]
[1722701315008,0.00083,61000.0,60999.0,1.19382424]
[1722701315206,0.00083,61000.0,60999.0,1.18982424]
[1722701315410,0.00083,61000.0,60999.0,1.16982424]
[1722701315620,0.00083,61000.0,60999.0,0.85595024]
[1722701316075,0.00083,61000.0,60999.0,0.21833924]
[1722701316284,0.00083,61000.0,60999.0,1.21833924]
[1722701316487,0.00083,61000.0,60999.0,1.20433924]
[1722701316894,0.00083,61000.0,60999.0,1.19033924]
[1722701317087,0.328698,61000.0,60999.0,1.04688]
[1722701317207,0.328698,61000.0,60999.0,1.06088]
[1722701317208,0.8205,61000.0,60999.0,1.06088]
[1722701317408,0.00083,61000.0,60999.0,1.04688]
[1722701317660,0.492632,61000.0,60999.0,1.03288]
[1722701317859,0.8205,61000.0,60999.0,1.06088]
[1722701318033,0.492632,61000.0,60999.0,1.06088]
[1722701318425,0.492632,61000.0,60999.0,1.04688]
[1722701318426,0.00083,61000.0,60999.0,1.04688]
[1722701318648,0.00083,61000.0,60999.0,1.37827624]
[1722701318823,0.00083,61000.0,60999.0,2.15022424]
[1722701319140,0.00083,61000.0,60999.0,1.30053924]
[1722701319353,0.492632,61000.0,60999.0,1.06088]
[1722701319562,0.164764,61000.0,60999.0,1.06088]
[1722701319762,0.164764,61000.0,60999.0,1.04688]
[1722701319763,0.8205,61000.0,60999.0,1.04688]
[1722701319993,1.148368,61000.0,60999.0,1.014]
[1722701320193,1.30582724,61000.0,60999.0,1.0]
[1722701320397,1.81244718,61000.0,60999.0,1.0]
[1722701320597,1.81244718,61000.0,60999.0,1.028]
[1722701320952,1.81244718,61000.0,60999.0,1.014]
[1722701321446,1.81244718,61000.0,60999.0,1.009]
[1722701321579,0.00083,61000.0,60999.0,1.05188]
[1722701322151,0.8205,61000.0,60999.0,1.05188]
[1722701322352,0.00083,61000.0,60999.0,1.05188]
[1722701322884,0.00083,61000.0,60999.0,1.04188]
[1722701323084,0.328698,61000.0,60999.0,1.04188]
[1722701323288,0.8205,61000.0,60999.0,1.05088]
[1722701323488,1.148368,61000.0,60999.0,1.05088]
[1722701323689,1.148368,61000.0,60999.0,1.04188]
[1722701323904,1.677636,61000.0,60999.0,1.014]
[1722701324105,1.58610694,61000.0,60999.0,1.014]
[1722701324487,1.91397494,61000.0,60999.0,1.023]
[1722701324701,1.91397494,61000.0,60999.0,1.009]
[1722701324702,2.07143418,61000.0,60999.0,1.009]
[1722701324906,2.07143418,61000.0,60999.0,1.0]
[1722701325148,2.07143418,61000.0,60999.0,1.009]
[1722701325694,1.58610694,61000.0,60999.0,1.0]
[1722701325890,1.58610694,61000.0,60999.0,1.009]
[1722701326201,1.25823894,61000.0,60999.0,1.009]
[1722701326410,0.30223,61000.0,60999.0,1.018]
[1722701326584,0.00083,61000.0,60999.0,1.05088]
[1722701326790,0.492632,61000.0,60999.0,1.04188]
[1722701327005,1.148368,61000.0,60999.0,1.018]
[1722701327177,1.248368,61000.0,60999.0,1.009]
[1722701327594,1.87002624,61000.0,60999.0,1.009]
[1722701327799,1.98592624,61000.0,60999.0,1.018]
[1722701328002,2.17142624,61000.0,60999.0,1.009]
[1722701328200,2.17144789,61000.0,60999.0,1.009]
[1722701328747,2.50931589,61000.0,60999.0,1.0]
[1722701328962,3.05338389,61000.0,60999.0,0.501465]
[1722701329143,3.05338389,61000.0,60999.0,0.13723]
[1722701329348,3.21073906,61000.0,60999.0,0.13723]
[1722701329689,2.313692,60986.0,60985.0,0.000913]
[1722701329888,3.87523948,60986.0,60985.0,0.000913]
[1722701330096,4.14843948,60986.0,60985.0,0.000913]
[1722701330315,4.14843948,60986.0,60985.0,1e-06]
[1722701330316,4.49938348,60986.0,60985.0,1e-06]
[1722701330516,4.65673865,60986.0,60985.0,1e-06]
[1722701331123,1.148217,60964.0,60963.0,0.47251164]
[1722701331324,1.248217,60964.0,60963.0,0.47251164]
[1722701331549,0.164055,60955.0,60954.0,0.03288]
[1722701331770,0.820275,60955.0,60954.0,0.03288]
[1722701331978,1.148385,60955.0,60954.0,0.03288]
[1722701332179,0.820275,60955.0,60954.0,0.03288]
[1722701332760,0.76446114,60955.0,60954.0,0.03288]
[1722701332955,0.3,60951.0,60933.0,0.0923]
[1722701333155,0.49227,60942.0,60941.0,0.47251164]
[1722701333386,0.1,60950.0,60933.0,0.0923]
[1722701333909,0.1,60950.0,60937.0,0.03288]
[1722701334114,0.328149,60948.0,60937.0,0.03288]
[1722701334263,0.164083,60945.0,60937.0,0.03288]
[1722701334463,0.1,60950.0,60937.0,0.03288]
[1722701334671,0.103,60950.0,60938.0,0.0032814]
[1722701334924,0.167069,60950.0,60944.0,0.03288]
[1722701335127,0.003,60950.0,60946.0,0.03288]
[1722701335330,0.1,60965.0,60943.0,0.1073]
[1722701335331,0.368,60961.0,60950.0,0.04288]
[1722701335530,0.328022,60972.0,60955.0,0.03288]
[1722701335784,0.15745924,60972.0,60960.0,0.03288]
[1722701335908,0.07875194,60978.0,60960.0,0.03288]
[1722701335909,0.07875194,60978.0,60963.0,0.03445439]
[1722701336276,0.07875194,60971.0,60963.0,0.03773471]
[1722701336479,0.07875194,60971.0,60963.0,0.03616032]
[1722701336786,0.164052,60956.0,60955.0,0.03288]
[1722701336997,0.07875194,60964.0,60956.0,0.00157439]
[1722701337225,0.164052,60956.0,60955.0,0.03288]
[1722701337418,0.164038,60962.0,60955.0,0.03288]
[1722701337621,0.328076,60962.0,60955.0,0.03288]
[1722701337821,0.07875194,60964.0,60955.0,0.03288]
[1722701337822,0.820262,60956.0,60955.0,0.03288]
[1722701338025,0.492157,60956.0,60955.0,0.03288]
[1722701338453,1.148367,60956.0,60955.0,0.03288]
[1722701338663,1.40582624,60956.0,60955.0,0.03788]
[1722701338888,1.40582624,60956.0,60955.0,0.03288]
[1722701339101,0.32817,60944.0,60943.0,0.12518]
[1722701339313,0.820425,60944.0,60943.0,0.03288]
[1722701339730,1.148595,60944.0,60943.0,0.03288]
[1722701339951,0.820425,60944.0,60943.0,0.03288]
[1722701340931,1.148595,60944.0,60943.0,0.03288]
[1722701341145,1.148595,60944.0,60943.0,0.04688]
[1722701341146,1.149595,60944.0,60943.0,0.04688]
[1722701341351,0.821425,60944.0,60943.0,0.014]
[1722701341538,0.001,60944.0,60943.0,0.04688]
[1722701341763,0.001,60944.0,60943.0,0.05850322]
[1722701341987,0.001,60944.0,60943.0,0.8236058]
[1722701342187,0.001,60944.0,60943.0,0.41416246]
[1722701342448,0.002,60944.0,60943.0,0.26870322]
[1722701342978,0.002,60944.0,60943.0,0.93170562]
[1722701343101,0.002,60944.0,60943.0,1.26188062]
[1722701343308,0.002,60944.0,60943.0,1.24988062]
[1722701343550,0.002,60944.0,60943.0,1.23588062]
[1722701343761,0.3,60967.0,60947.0,0.00157439]
[1722701343933,0.16405,60957.0,60950.0,0.00157439]
[1722701344146,0.164048,60958.0,60952.0,0.00157439]
[1722701344331,0.16406,60953.0,60952.0,0.00157439]
[1722701344534,0.16406,60953.0,60951.0,0.03288]
[1722701344736,0.164063,60952.0,60951.0,0.03288]
[1722701344935,0.820317,60952.0,60951.0,0.03288]
[1722701345135,0.820317,60952.0,60943.0,0.0981]
[1722701345136,0.164082,60945.0,60944.0,0.03288]
[1722701345429,0.164082,60945.0,60934.0,0.03288]
[1722701345430,0.492327,60935.0,60934.0,0.03288]
[1722701345832,0.820545,60935.0,60934.0,0.03288]
[1722701346232,0.164109,60935.0,60934.0,0.03288]
[1722701346589,1.148763,60935.0,60934.0,0.03288]
[1722701346791,0.820545,60935.0,60934.0,0.03288]
[1722701347156,0.328182,60942.0,60934.0,0.03288]
[1722701347358,0.328181,60942.0,60934.0,0.03288]
[1722701347563,0.164107,60936.0,60934.0,0.03288]
[1722701347743,0.32118365,60943.0,60934.0,0.03288]
[1722701347744,0.820545,60935.0,60934.0,0.04688]
[1722701348332,0.164117,60932.0,60931.0,0.03288]
[1722701348800,0.492351,60932.0,60931.0,0.03288]
[1722701349219,0.820585,60932.0,60931.0,0.03288]
[1722701349332,0.492351,60932.0,60931.0,0.03288]
[1722701349535,0.164114,60933.0,60931.0,0.03288]
[1722701349827,0.328187,60941.0,60931.0,0.03288]
[1722701350008,0.1,60940.0,60932.0,0.00328197]
[1722701350214,0.164096,60940.0,60933.0,0.03288]
[1722701350454,0.32118365,60943.0,60933.0,0.03288]
[1722701350455,0.328181,60942.0,60933.0,0.03288]
[1722701350662,0.328181,60942.0,60931.0,0.014]
[1722701350663,0.328166,60945.0,60936.0,0.03288]
[1722701350813,0.16407,60950.0,60938.0,0.03288]
[1722701351021,0.164073,60949.0,60945.0,0.03288]
[1722701351225,0.32118365,60956.0,60947.0,0.164075]
[1722701351226,0.48523665,60956.0,60947.0,0.164075]
[1722701351582,0.1,60965.0,60947.0,0.164075]
[1722701351583,0.328056,60966.0,60957.0,0.03288]
[1722701351815,0.3,60975.0,60959.0,0.03288]
[1722701352012,0.164028,60966.0,60961.0,0.03288]
[1722701352222,0.328037,60969.0,60962.0,0.00157439]
[1722701352456,0.328005,60975.0,60966.0,0.03288]
[1722701352664,0.328005,60975.0,60958.0,0.1121]
[1722701352665,0.32118365,60977.0,60968.0,0.03288]
[1722701352872,0.32799,60978.0,60968.0,0.03288]
[1722701352873,0.163994,60978.0,60972.0,0.03288]
[1722701353047,0.163992,60979.0,60973.0,0.00157439]
[1722701353286,0.163991,60979.0,60974.0,0.03288]
[1722701353545,0.163994,60978.0,60975.0,0.00157439]
[1722701353751,0.327978,60980.0,60975.0,0.00157439]
[1722701353971,0.819992,60976.0,60975.0,0.00157439]
[1722701354175,0.819992,60976.0,60952.0,0.328122]
[1722701354176,0.328051,60966.0,60965.0,0.03288]
[1722701354404,0.820127,60966.0,60965.0,0.03288]
[1722701354622,0.15745924,60975.0,60965.0,0.03288]
[1722701354623,0.164015,60970.0,60965.0,0.03288]
[1722701354830,0.1,60981.0,60973.0,0.03288]
[1722701354831,0.32118365,60976.0,60973.0,0.03288]
[1722701355038,0.492005,60975.0,60974.0,0.0861]
[1722701355213,0.32118365,60976.0,60973.0,0.03288]
[1722701355675,0.327968,60982.0,60973.0,0.03288]
[1722701355676,0.327988,60978.0,60973.0,0.03288]
[1722701355881,0.7915,60988.0,60974.0,0.03445439]
[1722701356029,0.327974,60981.0,60974.0,0.03445439]
[1722701356233,0.163994,60978.0,60974.0,0.03445439]
[1722701356434,0.164001,60975.0,60974.0,0.03445439]
[1722701356611,0.164001,60975.0,60974.0,0.03288]
[1722701356813,0.163991,60979.0,60975.0,0.03288]
[1722701357036,0.327933,60988.0,60980.0,0.03288]
[1722701357238,0.1,60997.0,60985.0,0.163972]
[1722701357239,0.327899,60995.0,60985.0,0.163972]
[1722701357393,0.1,60997.0,60981.0,0.16231288]
[1722701357394,0.1,60997.0,60986.0,0.03615895]
[1722701357612,0.163956,60992.0,60986.0,0.03615895]
[1722701357880,0.00083,61000.0,60992.0,0.03288]
[1722701358192,0.00083,61000.0,60999.0,0.03288]
[1722701358524,0.164764,61000.0,60999.0,0.03288]
[1722701358740,0.00083,61000.0,60999.0,0.03288]
[1722701359102,0.00083,61000.0,60999.0,0.20009542]
[1722701359311,0.00083,61000.0,60999.0,0.52796942]
[1722701359494,0.00083,61000.0,60999.0,1.01330266]
[1722701359912,0.00083,61000.0,60999.0,1.34117666]
[1722701360091,0.00083,61000.0,60999.0,1.01002424]
[1722701360465,0.00083,61000.0,60999.0,0.69615024]
[1722701360689,0.00083,61000.0,60999.0,0.36827624]
[1722701360900,0.00083,61000.0,60999.0,1.01002424]
[1722701361057,0.00083,61000.0,60999.0,1.35189824]
[1722701361432,0.00083,61000.0,60999.0,1.36789824]
[1722701361575,0.00083,61000.0,60999.0,0.07218004]
[1722701361776,0.00083,61000.0,60999.0,0.72472849]
[1722701361992,0.00083,61000.0,60999.0,1.36647649]
[1722701362181,0.00083,61000.0,60999.0,1.39247649]
[1722701362407,0.00083,61000.0,60999.0,1.47657649]
[1722701362559,0.00083,61000.0,60999.0,1.49657649]
[1722701362766,0.00924,61008.0,61007.0,0.864457]
[1722701363065,0.00924,61008.0,61007.0,1.56550186]
[1722701363317,0.00924,61008.0,61007.0,2.06453286]
[1722701363517,0.00924,61008.0,61007.0,2.20953286]
[1722701363926,0.07875194,61035.0,61007.0,2.20953286]
[1722701363927,0.327681,61035.0,61028.0,0.03288]
[1722701364096,0.47251164,61036.0,61028.0,0.03288]
[1722701364294,0.163856,61029.0,61028.0,0.03288]
[1722701364843,0.819282,61029.0,61028.0,0.03288]
[1722701365074,0.163856,61030.0,61019.0,0.00327713]
[1722701365286,0.07875194,61038.0,61028.0,0.011]
[1722701365494,0.163838,61036.0,61028.0,0.15745924]
[1722701365690,0.00925,61039.0,61028.0,0.16745924]
[1722701365691,0.16384,61035.0,61028.0,0.16745924]
[1722701365993,0.00925,61039.0,61028.0,0.16745924]
[1722701365994,0.00925,61039.0,61035.0,0.163838]
[1722701366103,0.00925,61039.0,61036.0,0.32457149]
[1722701366304,0.00925,61039.0,61038.0,0.163832]
[1722701366509,0.00925,61039.0,61038.0,0.0032762]
[1722701366715,0.00925,61039.0,61030.0,0.261953]
[1722701366920,0.00925,61039.0,61031.0,0.15745924]
[1722701366921,0.07875194,61036.0,61031.0,0.15745924]
[1722701367147,0.163838,61036.0,61031.0,0.15745924]
[1722701367348,0.00925,61039.0,61031.0,0.15745924]
[1722701367563,0.00925,61039.0,61038.0,0.163832]
[1722701367767,0.00925,61039.0,61038.0,0.64895524]
[1722701368119,0.00925,61039.0,61038.0,0.74705524]
[1722701368324,0.00925,61039.0,61038.0,0.41939124]
[1722701368675,0.00924,61042.0,61040.0,0.0981]
[1722701368886,0.00924,61042.0,61041.0,0.97657924]
[1722701369108,0.00924,61042.0,61041.0,0.64893124]
[1722701369875,0.00924,61042.0,61041.0,0.65093124]
[1722701370077,0.00924,61042.0,61041.0,1.31622724]
[1722701370257,0.00924,61042.0,61041.0,1.9799569]
[1722701370441,0.00924,61042.0,61041.0,1.92323798]
[1722701370843,0.00924,61042.0,61041.0,2.25088598]
[1722701371048,0.00924,61042.0,61041.0,1.92323798]
[1722701371299,0.00924,61042.0,61041.0,1.83702724]
[1722701371448,0.00924,61042.0,61041.0,1.19517924]
[1722701371654,0.00924,61042.0,61041.0,0.53988324]
[1722701371883,0.500704,61042.0,61041.0,0.014]
[1722701372095,0.173061,61042.0,61041.0,0.028]
[1722701372301,0.173061,61042.0,61041.0,0.014]
[1722701372302,0.00924,61042.0,61041.0,0.014]
[1722701372559,0.173062,61042.0,61041.0,0.014]
[1722701372792,0.173062,61042.0,61041.0,0.028]
[1722701372793,0.828347,61042.0,61041.0,0.028]
[1722701373199,0.00924,61042.0,61041.0,0.028]
[1722701373603,0.500704,61042.0,61041.0,0.028]
[1722701374008,0.828347,61042.0,61041.0,0.014]
[1722701374255,0.828347,61042.0,61031.0,0.327698]
[1722701374256,0.336883,61042.0,61031.0,0.327698]
[1722701374404,0.336883,61042.0,61029.0,0.425812]
[1722701374405,0.00924,61042.0,61032.0,0.16230986]
[1722701374628,0.173063,61042.0,61041.0,0.014]
[1722701374809,0.173063,61042.0,61037.0,0.00157439]
[1722701374810,0.00924,61042.0,61037.0,0.00157439]
[1722701375019,0.819215,61034.0,61033.0,0.00157439]
[1722701375229,0.07875194,61038.0,61023.0,0.03288]
[1722701375444,0.491608,61024.0,61023.0,0.03288]
[1722701375650,0.819347,61024.0,61023.0,0.03288]
[1722701376081,0.1,61020.0,61007.0,0.03288]
[1722701376278,0.163912,61008.0,61007.0,0.03288]
[1722701376789,0.163912,61008.0,60996.0,0.327886]
[1722701376790,0.163947,60996.0,60992.0,0.0981]
[1722701376992,0.163929,61002.0,60993.0,0.01075012]
[1722701377206,0.15745924,61012.0,60994.0,0.03288]
[1722701377414,0.327895,60995.0,60994.0,0.03288]
[1722701377638,0.327848,61004.0,60994.0,0.03288]
[1722701377844,0.1112,61005.0,60994.0,0.03268]
[1722701378042,0.163946,60996.0,60994.0,0.03268]
[1722701378250,0.819737,60995.0,60994.0,0.03368]
[1722701378470,0.819737,60995.0,60994.0,0.001]
[1722701378677,1.147632,60995.0,60994.0,0.013]
[1722701378897,1.147632,60995.0,60994.0,0.04448]
[1722701379104,0.313,61005.0,60994.0,0.03948]
[1722701379105,0.327882,60998.0,60994.0,0.03948]
[1722701379313,0.32787,61000.0,60994.0,0.03948]
[1722701379516,0.1,61004.0,60994.0,0.05348]
[1722701379517,0.163934,61001.0,60994.0,0.05348]
[1722701379711,0.1112,61005.0,60994.0,0.05348]
[1722701379712,0.163921,61005.0,60998.0,0.03248]
[1722701379917,0.163922,61005.0,60998.0,0.03248]
[1722701380150,0.163911,61009.0,61000.0,0.360347]
[1722701380360,0.32118365,61012.0,61003.0,0.03248]
[1722701380361,0.163923,61004.0,61003.0,0.03248]
[1722701380648,0.163916,61007.0,61003.0,0.03248]
[1722701380800,0.163913,61008.0,61004.0,0.00157439]
[1722701381003,0.64898865,61012.0,61005.0,0.03248]
[1722701381004,0.25794394,61012.0,61005.0,0.03248]
[1722701381202,0.327786,61016.0,61006.0,0.00157439]